[Event "Titled Tuesday Blitz May 2 Late 2023"]
[White "Weber, Samuel"]
[Black "Feng, Eric"]
[WhiteFideId "12924008"]
[BlackFideId "30952590"]
[WhiteElo "2162"]
[BlackElo "1785"]
[Result "0-1"]
[Round "02"]
[TimeControl "180+2"]
[Date "2023.05.02"]
[WhiteClock "0:00:08"]
[BlackClock "0:00:06"]

1. b3 {[%clk 0:03:00]}  Nf6 {[%clk 0:02:57]} 2. c4 {[%clk 0:03:00]}  g6 {[%clk 0:02:57]} 3. Bb2 {[%clk 0:03:00]}  Bg7 {[%clk 0:02:58]} 4. e3 {[%clk 0:03:01]}  O-O {[%clk 0:02:58]} 5. Nf3 {[%clk 0:03:01]}  d6 {[%clk 0:02:59]} 6. Be2 {[%clk 0:03:01]}  Nbd7 {[%clk 0:02:59]} 7. O-O {[%clk 0:03:01]}  e5 {[%clk 0:02:59]} 8. d3 {[%clk 0:03:01]}  Qe7 {[%clk 0:03:00]} 9. Nbd2 {[%clk 0:03:01]}  b6 {[%clk 0:03:00]} 10. Re1 {[%clk 0:02:46]}  Bb7 {[%clk 0:03:00]} 11. e4 {[%clk 0:02:47]}  Rad8 {[%clk 0:03:00]} 12. Nf1 {[%clk 0:02:47]}  Nh5 {[%clk 0:03:00]} 13. g3 {[%clk 0:02:46]}  f5 {[%clk 0:03:00]} 14. exf5 {[%clk 0:02:46]}  gxf5 {[%clk 0:02:54]} 15. Nxe5 {[%clk 0:02:37]}  Nxg3 {[%clk 0:02:50]} 16. hxg3 {[%clk 0:02:28]}  Nxe5 {[%clk 0:02:47]} 17. d4 {[%clk 0:02:16]}  Ng6 {[%clk 0:02:38]} 18. Qc2 {[%clk 0:02:07]}  Qf7 {[%clk 0:02:34]} 19. f4 {[%clk 0:01:58]}  Nxf4 {[%clk 0:02:15]} 20. gxf4 {[%clk 0:01:24]}  Qg6+ {[%clk 0:02:14]} 21. Kf2 {[%clk 0:01:19]}  Qg2+ {[%clk 0:02:01]} 22. Ke3 {[%clk 0:01:19]}  Rde8+ {[%clk 0:02:01]} 23. Kd2 {[%clk 0:01:19]}  Bf3 {[%clk 0:01:54]} 24. Qd3 {[%clk 0:01:13]}  Bg4 {[%clk 0:01:33]} 25. Ne3 {[%clk 0:01:07]}  Qg3 {[%clk 0:01:16]} 26. Rg1 {[%clk 0:00:48]}  Qxf4 {[%clk 0:01:13]} 27. Raf1 {[%clk 0:00:47]}  Qg5 {[%clk 0:00:54]} 28. Bxg4 {[%clk 0:00:41]}  fxg4 {[%clk 0:00:52]} 29. Rxg4 {[%clk 0:00:30]}  Qh6 {[%clk 0:00:44]} 30. Rxf8+ {[%clk 0:00:16]}  Rxf8 {[%clk 0:00:45]} 31. d5 {[%clk 0:00:15]}  Rf2+ {[%clk 0:00:41]} 32. Ke1 {[%clk 0:00:12]}  Rf7 {[%clk 0:00:41]} 33. Nf5 {[%clk 0:00:12]}  Qh1+ {[%clk 0:00:38]} 34. Kd2 {[%clk 0:00:11]}  Qh2+ {[%clk 0:00:04]} 35. Qe2 {[%clk 0:00:11]}  Qh3 {[%clk 0:00:03]} 36. Rxg7+ {[%clk 0:00:09]}  Rxg7 {[%clk 0:00:04]} 37. Nxg7 {[%clk 0:00:09]}  Qh6+ {[%clk 0:00:04]} 38. Qe3 {[%clk 0:00:09]}  Qh2+ {[%clk 0:00:04]} 39. Kc1 {[%clk 0:00:09]}  Qh1+ {[%clk 0:00:04]} 40. Kc2 {[%clk 0:00:09]}  Qg2+ {[%clk 0:00:04]} 41. Qd2 {[%clk 0:00:10]}  Qg6+ {[%clk 0:00:05]} 42. Kc1 {[%clk 0:00:09]}  Qg1+ {[%clk 0:00:05]} 43. Qd1 {[%clk 0:00:09]}  Qg5+ {[%clk 0:00:06]} 44. Qd2 {[%clk 0:00:09]}  Qg1+ {[%clk 0:00:06]} 45. Kc2 {[%clk 0:00:09]}  Qg6+ {[%clk 0:00:06]} 46. Qd3 {[%clk 0:00:10]}  Qg2+ {[%clk 0:00:07]} 47. Kc3 {[%clk 0:00:10]}  Qxg7+ {[%clk 0:00:07]} 48. Qd4 {[%clk 0:00:10]}  Qg3+ {[%clk 0:00:07]} 49. Kb4 {[%clk 0:00:10]}  a5+ {[%clk 0:00:07]} 50. Kb5 {[%clk 0:00:11]}  Qg6 {[%clk 0:00:08]} 51. Qh8+ {[%clk 0:00:11]}  Kf7 {[%clk 0:00:09]} 52. Qd8 {[%clk 0:00:11]}  Qc2 {[%clk 0:00:07]} 53. Qxc7+ {[%clk 0:00:12]}  Kf8 {[%clk 0:00:07]} 54. Bd4 {[%clk 0:00:13]}  Qxa2 {[%clk 0:00:06]} 55. Kc6 {[%clk 0:00:13]}  Qxb3 {[%clk 0:00:07]} 56. Qxd6+ {[%clk 0:00:14]}  Kg8 {[%clk 0:00:07]} 57. Kd7 {[%clk 0:00:15]}  Qxc4 {[%clk 0:00:07]} 58. Qe6+ {[%clk 0:00:16]}  Kf8 {[%clk 0:00:08]} 59. Bf6 {[%clk 0:00:16]}  Qb5+ {[%clk 0:00:07]} 60. Qc6 {[%clk 0:00:16]}  Qe2 {[%clk 0:00:06]} 61. d6 {[%clk 0:00:16]}  Qe8+ {[%clk 0:00:03]} 62. Kc7 {[%clk 0:00:16]}  Qe6 {[%clk 0:00:04]} 63. Be7+ {[%clk 0:00:16]}  Kf7 {[%clk 0:00:04]} 64. Qf3+ {[%clk 0:00:17]}  Kg6 {[%clk 0:00:04]} 65. Qd3+ {[%clk 0:00:16]}  Kf7 {[%clk 0:00:04]} 66. Qxh7+ {[%clk 0:00:16]}  Ke8 {[%clk 0:00:04]} 67. Qh8+ {[%clk 0:00:15]}  Kf7 {[%clk 0:00:05]} 68. Qg8+ {[%clk 0:00:15]}  Kxg8 {[%clk 0:00:05]} 69. Kd8 {[%clk 0:00:11]}  Kf7 {[%clk 0:00:05]} 70. Kc7 {[%clk 0:00:11]}  Ke8 {[%clk 0:00:05]} 71. Kc6 {[%clk 0:00:11]}  a4 {[%clk 0:00:05]} 72. Kxb6 {[%clk 0:00:10]}  a3 {[%clk 0:00:05]} 73. Kc7 {[%clk 0:00:08]}  Qd7+ {[%clk 0:00:05]} 74. Kb6 {[%clk 0:00:08]}  a2 {[%clk 0:00:06]} 75. Kc5 {[%clk 0:00:08]}  a1=Q {[%clk 0:00:06]} 76. Kb6 {[%clk 0:00:09]}  Qe5 {[%clk 0:00:06]} 77. Ka6 {[%clk 0:00:08]}  Qeb5# {[%clk 0:00:06]} 0-1


[Site "https://www.chess.com"]

[Event "Titled Tuesday Blitz May 2 Late 2023"]
[White "Lee, Linden"]
[Black "Van Foreest, Machteld"]
[WhiteFideId "30941830"]
[BlackFideId "1051563"]
[WhiteElo "1985"]
[BlackElo "2018"]
[Result "1-0"]
[Round "02"]
[TimeControl "180+2"]
[Date "2023.05.02"]
[WhiteClock "0:01:55"]
[BlackClock "0:00:07"]

1. d4 {[%clk 0:03:00]}  d5 {[%clk 0:02:59]} 2. c4 {[%clk 0:03:01]}  c6 {[%clk 0:02:59]} 3. Nc3 {[%clk 0:03:01]}  Nf6 {[%clk 0:02:59]} 4. cxd5 {[%clk 0:03:02]}  cxd5 {[%clk 0:02:59]} 5. Bf4 {[%clk 0:03:02]}  Nc6 {[%clk 0:02:58]} 6. e3 {[%clk 0:03:02]}  e6 {[%clk 0:02:56]} 7. Be2 {[%clk 0:03:00]}  Bd6 {[%clk 0:02:55]} 8. Bxd6 {[%clk 0:03:00]}  Qxd6 {[%clk 0:02:56]} 9. f4 {[%clk 0:03:01]}  O-O {[%clk 0:02:55]} 10. Nf3 {[%clk 0:03:02]}  Ne4 {[%clk 0:02:51]} 11. O-O {[%clk 0:03:01]}  f5 {[%clk 0:02:51]} 12. Ne5 {[%clk 0:03:01]}  Bd7 {[%clk 0:02:41]} 13. a3 {[%clk 0:02:59]}  Rac8 {[%clk 0:02:15]} 14. Rc1 {[%clk 0:02:58]}  Nxe5 {[%clk 0:02:05]} 15. fxe5 {[%clk 0:02:58]}  Qb6 {[%clk 0:02:04]} 16. Nxe4 {[%clk 0:02:55]}  fxe4 {[%clk 0:01:52]} 17. Rxf8+ {[%clk 0:02:53]}  Rxf8 {[%clk 0:01:45]} 18. Qd2 {[%clk 0:02:52]}  Qd8 {[%clk 0:01:37]} 19. Rf1 {[%clk 0:02:49]}  Qg5 {[%clk 0:01:28]} 20. Rxf8+ {[%clk 0:02:44]}  Kxf8 {[%clk 0:01:28]} 21. Bf1 {[%clk 0:02:40]}  Ke8 {[%clk 0:01:24]} 22. Kf2 {[%clk 0:02:39]}  Qf5+ {[%clk 0:01:21]} 23. Ke1 {[%clk 0:02:38]}  Qh5 {[%clk 0:01:21]} 24. g3 {[%clk 0:02:37]}  Qf3 {[%clk 0:01:20]} 25. Bg2 {[%clk 0:02:37]}  Qh5 {[%clk 0:01:19]} 26. Bf1 {[%clk 0:02:35]}  Qf3 {[%clk 0:01:19]} 27. Qf2 {[%clk 0:02:32]}  g5 {[%clk 0:01:07]} 28. Qxf3 {[%clk 0:02:29]}  exf3 {[%clk 0:01:07]} 29. g4 {[%clk 0:02:30]}  Ba4 {[%clk 0:00:48]} 30. Bd3 {[%clk 0:02:23]}  h6 {[%clk 0:00:46]} 31. e4 {[%clk 0:02:23]}  Ke7 {[%clk 0:00:39]} 32. exd5 {[%clk 0:02:16]}  exd5 {[%clk 0:00:40]} 33. Kf2 {[%clk 0:02:16]}  Bd1 {[%clk 0:00:39]} 34. Bb1 {[%clk 0:02:10]}  b6 {[%clk 0:00:33]} 35. Ke3 {[%clk 0:02:07]}  f2 {[%clk 0:00:32]} 36. Kxf2 {[%clk 0:02:06]}  Bxg4 {[%clk 0:00:32]} 37. Ba2 {[%clk 0:02:06]}  Ke6 {[%clk 0:00:31]} 38. Kg3 {[%clk 0:02:03]}  Bf5 {[%clk 0:00:31]} 39. Bb3 {[%clk 0:02:03]}  h5 {[%clk 0:00:29]} 40. Bd1 {[%clk 0:02:00]}  h4+ {[%clk 0:00:28]} 41. Kf2 {[%clk 0:02:00]}  g4 {[%clk 0:00:26]} 42. Ke3 {[%clk 0:02:00]}  g3 {[%clk 0:00:10]} 43. hxg3 {[%clk 0:02:00]}  h3 {[%clk 0:00:09]} 44. Kf2 {[%clk 0:01:59]}  Be4 {[%clk 0:00:07]} 45. Kg1 {[%clk 0:01:59]}  Kf5 {[%clk 0:00:06]} 46. Kh2 {[%clk 0:01:59]}  Bg2 {[%clk 0:00:07]} 47. Bc2+ {[%clk 0:01:58]}  Ke6 {[%clk 0:00:06]} 48. Bg6 {[%clk 0:01:58]}  a6 {[%clk 0:00:05]} 49. g4 {[%clk 0:01:57]}  b5 {[%clk 0:00:05]} 50. Bf5+ {[%clk 0:01:57]}  Ke7 {[%clk 0:00:05]} 51. g5 {[%clk 0:01:58]}  Kf7 {[%clk 0:00:05]} 52. Bxh3 {[%clk 0:01:58]}  Be4 {[%clk 0:00:05]} 53. Kg3 {[%clk 0:01:57]}  Kg6 {[%clk 0:00:06]} 54. Kf4 {[%clk 0:01:57]}  a5 {[%clk 0:00:06]} 55. Bd7 {[%clk 0:01:56]}  b4 {[%clk 0:00:07]} 56. axb4 {[%clk 0:01:56]}  axb4 {[%clk 0:00:07]} 57. Be8+ {[%clk 0:01:57]}  Kg7 {[%clk 0:00:07]} 58. e6 {[%clk 0:01:57]}  Kf8 {[%clk 0:00:07]} 59. Bh5 {[%clk 0:01:56]}  Ke7 {[%clk 0:00:08]} 60. Ke5 {[%clk 0:01:56]}  Bd3 {[%clk 0:00:07]} 61. g6 {[%clk 0:01:55]}  Be4 {[%clk 0:00:07]} 62. g7 {[%clk 0:01:55]}  Bh7 {[%clk 0:00:07]} 63. Bf7 {[%clk 0:01:55]} 1-0


[Site "https://www.chess.com"]

[Event "Titled Tuesday Blitz May 2 Late 2023"]
[White "Vaglio Munoz, Jaime"]
[Black "Kim, Sergey"]
[WhiteFideId "6500145"]
[BlackFideId "13700570"]
[WhiteElo "2199"]
[BlackElo "2295"]
[Result "1/2-1/2"]
[Round "02"]
[TimeControl "180+2"]
[Date "2023.05.02"]
[WhiteClock "0:00:23"]
[BlackClock "0:00:02"]

1. Nf3 {[%clk 0:02:55]}  Nf6 {[%clk 0:02:59]} 2. b3 {[%clk 0:02:49]}  g6 {[%clk 0:02:59]} 3. Bb2 {[%clk 0:02:48]}  Bg7 {[%clk 0:03:00]} 4. c4 {[%clk 0:02:48]}  d6 {[%clk 0:03:00]} 5. d4 {[%clk 0:02:47]}  O-O {[%clk 0:03:00]} 6. g3 {[%clk 0:02:48]}  e5 {[%clk 0:02:58]} 7. dxe5 {[%clk 0:02:48]}  Nfd7 {[%clk 0:02:58]} 8. Bg2 {[%clk 0:02:48]}  dxe5 {[%clk 0:02:58]} 9. Qc1 {[%clk 0:02:48]}  Nc6 {[%clk 0:02:55]} 10. O-O {[%clk 0:02:46]}  a5 {[%clk 0:02:48]} 11. Rd1 {[%clk 0:02:45]}  Qe7 {[%clk 0:02:44]} 12. Nc3 {[%clk 0:02:41]}  Nb6 {[%clk 0:02:41]} 13. Nd5 {[%clk 0:02:37]}  Nxd5 {[%clk 0:02:41]} 14. cxd5 {[%clk 0:02:37]}  Nb4 {[%clk 0:02:36]} 15. a3 {[%clk 0:02:29]}  Na6 {[%clk 0:02:36]} 16. Qc3 {[%clk 0:02:29]}  Nc5 {[%clk 0:02:30]} 17. Nxe5 {[%clk 0:02:17]}  Nxb3 {[%clk 0:02:08]} 18. Qxb3 {[%clk 0:02:04]}  Bxe5 {[%clk 0:02:07]} 19. e4 {[%clk 0:02:00]}  a4 {[%clk 0:01:59]} 20. Qc2 {[%clk 0:01:59]}  Bd7 {[%clk 0:01:51]} 21. Rac1 {[%clk 0:01:55]}  Rfc8 {[%clk 0:01:47]} 22. f4 {[%clk 0:01:53]}  Bxb2 {[%clk 0:01:44]} 23. Qxb2 {[%clk 0:01:54]}  Rab8 {[%clk 0:01:32]} 24. e5 {[%clk 0:01:53]}  Bf5 {[%clk 0:01:32]} 25. Rc4 {[%clk 0:01:50]}  b5 {[%clk 0:01:31]} 26. Rc6 {[%clk 0:01:49]}  b4 {[%clk 0:01:29]} 27. axb4 {[%clk 0:01:47]}  Qxb4 {[%clk 0:01:22]} 28. Qa1 {[%clk 0:01:23]}  a3 {[%clk 0:01:20]} 29. h3 {[%clk 0:01:22]}  h5 {[%clk 0:01:19]} 30. Rdc1 {[%clk 0:01:19]}  Qb2 {[%clk 0:01:12]} 31. e6 {[%clk 0:01:04]}  Qxa1 {[%clk 0:00:19]} 32. exf7+ {[%clk 0:00:52]}  Kxf7 {[%clk 0:00:19]} 33. Rxa1 {[%clk 0:00:52]}  Rb1+ {[%clk 0:00:17]} 34. Rxb1 {[%clk 0:00:51]}  Bxb1 {[%clk 0:00:18]} 35. d6 {[%clk 0:00:49]}  a2 {[%clk 0:00:18]} 36. Bd5+ {[%clk 0:00:49]}  Ke8 {[%clk 0:00:15]} 37. Be6 {[%clk 0:00:45]}  a1=Q {[%clk 0:00:14]} 38. d7+ {[%clk 0:00:45]}  Ke7 {[%clk 0:00:13]} 39. dxc8=Q {[%clk 0:00:44]}  Qd4+ {[%clk 0:00:13]} 40. Kf1 {[%clk 0:00:36]}  Bd3+ {[%clk 0:00:13]} 41. Ke1 {[%clk 0:00:32]}  Qe3+ {[%clk 0:00:10]} 42. Kd1 {[%clk 0:00:32]}  Qe2+ {[%clk 0:00:10]} 43. Kc1 {[%clk 0:00:33]}  Qe1+ {[%clk 0:00:10]} 44. Kb2 {[%clk 0:00:33]}  Qd2+ {[%clk 0:00:08]} 45. Kb3 {[%clk 0:00:30]}  Qd1+ {[%clk 0:00:07]} 46. Kb2 {[%clk 0:00:28]}  Qd2+ {[%clk 0:00:07]} 47. Ka3 {[%clk 0:00:25]}  Qa5+ {[%clk 0:00:03]} 48. Kb3 {[%clk 0:00:25]}  Qb5+ {[%clk 0:00:02]} 49. Ka3 {[%clk 0:00:25]}  Qa5+ {[%clk 0:00:02]} 50. Kb2 {[%clk 0:00:24]}  Qb5+ {[%clk 0:00:02]} 51. Ka3 {[%clk 0:00:23]}  Qa5+ {[%clk 0:00:02]} 1/2-1/2


[Site "https://www.chess.com"]

[Event "Titled Tuesday Blitz May 2 Late 2023"]
[White "Bogaudinov, Rushan"]
[Black "Haydon, David L"]
[WhiteFideId "4129288"]
[BlackFideId "415405"]
[WhiteElo "1967"]
[BlackElo "2326"]
[Result "0-1"]
[Round "02"]
[TimeControl "180+2"]
[Date "2023.05.02"]
[WhiteClock "0:00:03"]
[BlackClock "0:00:50"]

1. e4 {[%clk 0:02:59]}  c6 {[%clk 0:03:00]} 2. d4 {[%clk 0:02:58]}  d5 {[%clk 0:03:00]} 3. e5 {[%clk 0:02:58]}  c5 {[%clk 0:03:00]} 4. dxc5 {[%clk 0:02:58]}  e6 {[%clk 0:03:00]} 5. Be3 {[%clk 0:02:56]}  Qc7 {[%clk 0:02:58]} 6. b4 {[%clk 0:02:39]}  a5 {[%clk 0:02:58]} 7. c3 {[%clk 0:02:36]}  axb4 {[%clk 0:02:55]} 8. cxb4 {[%clk 0:02:36]}  Nc6 {[%clk 0:02:54]} 9. Bb5 {[%clk 0:02:32]}  Qxe5 {[%clk 0:02:50]} 10. Qd4 {[%clk 0:02:27]}  Qxd4 {[%clk 0:02:47]} 11. Bxd4 {[%clk 0:02:26]}  Bd7 {[%clk 0:02:47]} 12. Bxc6 {[%clk 0:02:16]}  Bxc6 {[%clk 0:02:47]} 13. Nc3 {[%clk 0:01:54]}  f6 {[%clk 0:02:43]} 14. f4 {[%clk 0:01:47]}  Ne7 {[%clk 0:02:42]} 15. Nf3 {[%clk 0:01:41]}  Nf5 {[%clk 0:02:41]} 16. O-O {[%clk 0:01:23]}  Ra3 {[%clk 0:02:38]} 17. Rfc1 {[%clk 0:01:11]}  h5 {[%clk 0:02:26]} 18. Kf2 {[%clk 0:00:50]}  Be7 {[%clk 0:02:21]} 19. Rab1 {[%clk 0:00:48]}  Kf7 {[%clk 0:02:17]} 20. Rb3 {[%clk 0:00:42]}  Rxb3 {[%clk 0:01:55]} 21. axb3 {[%clk 0:00:43]}  Ra8 {[%clk 0:01:54]} 22. Ke2 {[%clk 0:00:35]}  Ra3 {[%clk 0:01:49]} 23. Rb1 {[%clk 0:00:33]}  b6 {[%clk 0:01:44]} 24. cxb6 {[%clk 0:00:19]}  Bxb4 {[%clk 0:01:40]} 25. Kd3 {[%clk 0:00:19]}  Bb7 {[%clk 0:01:38]} 26. Kc2 {[%clk 0:00:16]}  Ra5 {[%clk 0:01:30]} 27. Kb2 {[%clk 0:00:14]}  Ba3+ {[%clk 0:01:23]} 28. Kc2 {[%clk 0:00:13]}  Nxd4+ {[%clk 0:01:18]} 29. Nxd4 {[%clk 0:00:13]}  Bb4 {[%clk 0:01:11]} 30. Kb2 {[%clk 0:00:10]}  Bc5 {[%clk 0:01:07]} 31. Nc2 {[%clk 0:00:08]}  Bxb6 {[%clk 0:01:02]} 32. b4 {[%clk 0:00:08]}  Ra8 {[%clk 0:01:01]} 33. Ra1 {[%clk 0:00:06]}  Rxa1 {[%clk 0:00:58]} 34. Nxa1 {[%clk 0:00:07]}  d4 {[%clk 0:00:57]} 35. Nb5 {[%clk 0:00:07]}  Ke7 {[%clk 0:00:57]} 36. Nb3 {[%clk 0:00:07]}  e5 {[%clk 0:00:57]} 37. fxe5 {[%clk 0:00:07]}  fxe5 {[%clk 0:00:57]} 38. Nc5 {[%clk 0:00:06]}  Bxc5 {[%clk 0:00:56]} 39. bxc5 {[%clk 0:00:07]}  Bxg2 {[%clk 0:00:57]} 40. Kc2 {[%clk 0:00:06]}  Kd7 {[%clk 0:00:55]} 41. Kd3 {[%clk 0:00:04]}  Kc6 {[%clk 0:00:54]} 42. Nd6 {[%clk 0:00:04]}  Kxc5 {[%clk 0:00:53]} 43. Nb7+ {[%clk 0:00:05]}  Bxb7 {[%clk 0:00:51]} 44. h4 {[%clk 0:00:03]}  e4+ {[%clk 0:00:50]} 0-1


[Site "https://www.chess.com"]

[Event "Titled Tuesday Blitz May 2 Late 2023"]
[White "Guzman Moneo, Alberto"]
[Black "Dushyant Sharma"]
[WhiteFideId "2209616"]
[BlackFideId "25065130"]
[WhiteElo "2157"]
[BlackElo "2198"]
[Result "1-0"]
[Round "02"]
[TimeControl "180+2"]
[Date "2023.05.02"]
[WhiteClock "0:00:18"]
[BlackClock "0:00:15"]

1. Nf3 {[%clk 0:03:00]}  d5 {[%clk 0:03:00]} 2. g3 {[%clk 0:02:59]}  g6 {[%clk 0:02:57]} 3. d4 {[%clk 0:02:57]}  Bg7 {[%clk 0:02:58]} 4. Bg2 {[%clk 0:02:57]}  Nf6 {[%clk 0:02:58]} 5. O-O {[%clk 0:02:57]}  O-O {[%clk 0:02:59]} 6. c4 {[%clk 0:02:57]}  c6 {[%clk 0:02:59]} 7. cxd5 {[%clk 0:02:52]}  cxd5 {[%clk 0:02:58]} 8. Nc3 {[%clk 0:02:52]}  Nc6 {[%clk 0:02:59]} 9. Ne5 {[%clk 0:02:52]}  Be6 {[%clk 0:02:54]} 10. Nxc6 {[%clk 0:02:50]}  bxc6 {[%clk 0:02:54]} 11. Bf4 {[%clk 0:02:41]}  Nd7 {[%clk 0:02:54]} 12. Rc1 {[%clk 0:02:36]}  f6 {[%clk 0:02:51]} 13. e4 {[%clk 0:02:31]}  Nb6 {[%clk 0:02:51]} 14. b3 {[%clk 0:02:22]}  Bf7 {[%clk 0:02:46]} 15. e5 {[%clk 0:02:21]}  Rc8 {[%clk 0:01:59]} 16. Re1 {[%clk 0:02:16]}  c5 {[%clk 0:01:56]} 17. e6 {[%clk 0:02:02]}  Be8 {[%clk 0:01:56]} 18. dxc5 {[%clk 0:02:02]}  Rxc5 {[%clk 0:01:55]} 19. Be3 {[%clk 0:01:55]}  Rc6 {[%clk 0:01:40]} 20. Nxd5 {[%clk 0:01:19]}  Rxc1 {[%clk 0:01:36]} 21. Bxc1 {[%clk 0:01:18]}  Nxd5 {[%clk 0:01:00]} 22. Qxd5 {[%clk 0:01:15]}  Qb6 {[%clk 0:00:59]} 23. Be3 {[%clk 0:01:13]}  Qa6 {[%clk 0:00:58]} 24. a4 {[%clk 0:01:09]}  g5 {[%clk 0:00:52]} 25. Bc5 {[%clk 0:01:04]}  Qa5 {[%clk 0:00:47]} 26. b4 {[%clk 0:00:58]}  Qc7 {[%clk 0:00:47]} 27. a5 {[%clk 0:00:27]}  Ba4 {[%clk 0:00:28]} 28. Qb7 {[%clk 0:00:26]}  Qxb7 {[%clk 0:00:22]} 29. Bxb7 {[%clk 0:00:25]}  Rb8 {[%clk 0:00:22]} 30. Be4 {[%clk 0:00:20]}  Kf8 {[%clk 0:00:15]} 31. Bxh7 {[%clk 0:00:19]}  g4 {[%clk 0:00:14]} 32. Bf5 {[%clk 0:00:18]}  Bh6 {[%clk 0:00:14]} 33. Bxg4 {[%clk 0:00:17]}  Bd2 {[%clk 0:00:14]} 34. Re2 {[%clk 0:00:15]}  Bc3 {[%clk 0:00:12]} 35. Re4 {[%clk 0:00:10]}  a6 {[%clk 0:00:12]} 36. h4 {[%clk 0:00:09]}  Bc6 {[%clk 0:00:12]} 37. Rf4 {[%clk 0:00:09]}  Rd8 {[%clk 0:00:12]} 38. Rxf6+ {[%clk 0:00:08]}  Kg8 {[%clk 0:00:12]} 39. Bxe7 {[%clk 0:00:08]}  Bxf6 {[%clk 0:00:10]} 40. Bxf6 {[%clk 0:00:08]}  Rd2 {[%clk 0:00:10]} 41. e7 {[%clk 0:00:06]}  Rc2 {[%clk 0:00:09]} 42. Be6+ {[%clk 0:00:06]}  Kh7 {[%clk 0:00:09]} 43. f4 {[%clk 0:00:05]}  Re2 {[%clk 0:00:08]} 44. f5 {[%clk 0:00:05]}  Kh6 {[%clk 0:00:07]} 45. g4 {[%clk 0:00:05]}  Re4 {[%clk 0:00:07]} 46. g5+ {[%clk 0:00:05]}  Kh5 {[%clk 0:00:07]} 47. Kf2 {[%clk 0:00:05]}  Kxh4 {[%clk 0:00:07]} 48. b5 {[%clk 0:00:05]}  Bxb5 {[%clk 0:00:07]} 49. Bf7 {[%clk 0:00:05]}  Re2+ {[%clk 0:00:06]} 50. Kf3 {[%clk 0:00:05]}  Re1 {[%clk 0:00:07]} 51. g6+ {[%clk 0:00:05]}  Kh3 {[%clk 0:00:06]} 52. g7 {[%clk 0:00:05]}  Bc6+ {[%clk 0:00:06]} 53. Kf4 {[%clk 0:00:05]}  Re4+ {[%clk 0:00:07]} 54. Kg5 {[%clk 0:00:05]}  Rg4+ {[%clk 0:00:07]} 55. Kh6 {[%clk 0:00:06]}  Bd5 {[%clk 0:00:07]} 56. g8=Q {[%clk 0:00:06]}  Rxg8 {[%clk 0:00:07]} 57. Bxg8 {[%clk 0:00:06]}  Bc6 {[%clk 0:00:07]} 58. Bd5 {[%clk 0:00:07]}  Bxd5 {[%clk 0:00:08]} 59. e8=Q {[%clk 0:00:08]}  Bc6 {[%clk 0:00:08]} 60. Qg6 {[%clk 0:00:08]}  Bf3 {[%clk 0:00:08]} 61. Qg5 {[%clk 0:00:09]}  Bg4 {[%clk 0:00:08]} 62. Kg7 {[%clk 0:00:10]}  Bxf5 {[%clk 0:00:09]} 63. Qh6+ {[%clk 0:00:11]}  Kg4 {[%clk 0:00:09]} 64. Qg5+ {[%clk 0:00:11]}  Kf3 {[%clk 0:00:10]} 65. Qxf5+ {[%clk 0:00:12]}  Ke3 {[%clk 0:00:11]} 66. Qe5+ {[%clk 0:00:13]}  Kd3 {[%clk 0:00:12]} 67. Qd6+ {[%clk 0:00:13]}  Kc4 {[%clk 0:00:12]} 68. Qxa6+ {[%clk 0:00:14]}  Kb4 {[%clk 0:00:12]} 69. Qb6+ {[%clk 0:00:15]}  Ka3 {[%clk 0:00:13]} 70. Bh4 {[%clk 0:00:16]}  Ka4 {[%clk 0:00:14]} 71. a6 {[%clk 0:00:17]}  Ka3 {[%clk 0:00:14]} 72. a7 {[%clk 0:00:17]}  Ka2 {[%clk 0:00:15]} 73. a8=Q# {[%clk 0:00:18]} 1-0


[Site "https://www.chess.com"]

[Event "Titled Tuesday Blitz May 2 Late 2023"]
[White "Martic, Ivan"]
[Black "Buchenau, Frank"]
[WhiteFideId "929301"]
[BlackFideId "4604350"]
[WhiteElo "2360"]
[BlackElo "2157"]
[Result "0-1"]
[Round "02"]
[TimeControl "180+2"]
[Date "2023.05.02"]
[WhiteClock "0:01:41"]
[BlackClock "0:01:04"]

1. d4 {[%clk 0:02:57]}  e6 {[%clk 0:02:57]} 2. c4 {[%clk 0:02:54]}  Nf6 {[%clk 0:02:57]} 3. Nc3 {[%clk 0:02:53]}  Bb4 {[%clk 0:02:57]} 4. e3 {[%clk 0:02:54]}  O-O {[%clk 0:02:56]} 5. Bd3 {[%clk 0:02:49]}  c5 {[%clk 0:02:55]} 6. a3 {[%clk 0:02:49]}  Bxc3+ {[%clk 0:02:52]} 7. bxc3 {[%clk 0:02:50]}  d6 {[%clk 0:02:51]} 8. Ne2 {[%clk 0:02:47]}  e5 {[%clk 0:02:50]} 9. d5 {[%clk 0:02:41]}  e4 {[%clk 0:02:47]} 10. Bc2 {[%clk 0:02:40]}  Re8 {[%clk 0:02:45]} 11. h4 {[%clk 0:02:40]}  Bg4 {[%clk 0:02:43]} 12. Qd2 {[%clk 0:02:39]}  Nbd7 {[%clk 0:02:42]} 13. a4 {[%clk 0:02:39]}  Ne5 {[%clk 0:02:41]} 14. Bb3 {[%clk 0:02:37]}  Nd3+ {[%clk 0:02:39]} 15. Kf1 {[%clk 0:02:37]}  Nd7 {[%clk 0:02:12]} 16. Nf4 {[%clk 0:02:33]}  N7e5 {[%clk 0:02:08]} 17. Ba3 {[%clk 0:02:26]}  Qf6 {[%clk 0:01:58]} 18. Nxd3 {[%clk 0:02:16]}  Nxd3 {[%clk 0:01:57]} 19. Kg1 {[%clk 0:02:14]}  Re5 {[%clk 0:01:53]} 20. Bc2 {[%clk 0:02:11]}  Qg6 {[%clk 0:01:41]} 21. Bxd3 {[%clk 0:02:09]}  exd3 {[%clk 0:01:40]} 22. Kh2 {[%clk 0:02:09]}  Rh5 {[%clk 0:01:31]} 23. f3 {[%clk 0:02:01]}  Bxf3 {[%clk 0:01:25]} 24. Qf2 {[%clk 0:01:59]}  Rxh4+ {[%clk 0:01:22]} 25. Kg1 {[%clk 0:01:56]}  Rxh1+ {[%clk 0:01:19]} 26. Kxh1 {[%clk 0:01:56]}  Be4 {[%clk 0:01:11]} 27. a5 {[%clk 0:01:53]}  Re8 {[%clk 0:01:10]} 28. Ra2 {[%clk 0:01:51]}  Re5 {[%clk 0:01:09]} 29. Rb2 {[%clk 0:01:50]}  Rg5 {[%clk 0:01:05]} 30. Qh4 {[%clk 0:01:41]}  Rh5 {[%clk 0:01:04]} 0-1


[Site "https://www.chess.com"]

[Event "Titled Tuesday Blitz May 2 Late 2023"]
[White "Remolar Gallen, Jose"]
[Black "Elissalt Cardenas, Hector"]
[WhiteFideId "2215187"]
[BlackFideId "3500632"]
[WhiteElo "2223"]
[BlackElo "2202"]
[Result "1-0"]
[Round "02"]
[TimeControl "180+2"]
[Date "2023.05.02"]
[WhiteClock "0:00:11"]
[BlackClock "0:00:01"]

1. e4 {[%clk 0:02:57]}  d6 {[%clk 0:02:58]} 2. d4 {[%clk 0:02:57]}  Nf6 {[%clk 0:02:57]} 3. Nc3 {[%clk 0:02:57]}  c6 {[%clk 0:02:57]} 4. f4 {[%clk 0:02:54]}  Qa5 {[%clk 0:02:51]} 5. Bd3 {[%clk 0:02:48]}  e5 {[%clk 0:02:38]} 6. Nf3 {[%clk 0:02:39]}  Bg4 {[%clk 0:02:13]} 7. dxe5 {[%clk 0:02:37]}  dxe5 {[%clk 0:02:06]} 8. h3 {[%clk 0:02:37]}  Bxf3 {[%clk 0:01:59]} 9. Qxf3 {[%clk 0:02:38]}  Nbd7 {[%clk 0:01:54]} 10. Bd2 {[%clk 0:02:29]}  exf4 {[%clk 0:01:39]} 11. Qxf4 {[%clk 0:02:20]}  Qe5 {[%clk 0:01:38]} 12. O-O-O {[%clk 0:02:11]}  Bd6 {[%clk 0:01:35]} 13. Qf2 {[%clk 0:02:00]}  O-O {[%clk 0:01:23]} 14. Rhf1 {[%clk 0:01:57]}  Qg3 {[%clk 0:01:12]} 15. Qf5 {[%clk 0:01:25]}  Rae8 {[%clk 0:01:05]} 16. Ne2 {[%clk 0:01:24]}  Qe5 {[%clk 0:00:55]} 17. Qf2 {[%clk 0:01:03]}  Qe7 {[%clk 0:00:52]} 18. Ng3 {[%clk 0:01:00]}  Bxg3 {[%clk 0:00:26]} 19. Qxg3 {[%clk 0:01:01]}  Nh5 {[%clk 0:00:26]} 20. Qf2 {[%clk 0:00:51]}  Ne5 {[%clk 0:00:24]} 21. Kb1 {[%clk 0:00:40]}  h6 {[%clk 0:00:12]} 22. Rde1 {[%clk 0:00:36]}  Rd8 {[%clk 0:00:11]} 23. Bc3 {[%clk 0:00:21]}  b6 {[%clk 0:00:08]} 24. Qf5 {[%clk 0:00:15]}  Nf6 {[%clk 0:00:08]} 25. Bxe5 {[%clk 0:00:14]}  Nd7 {[%clk 0:00:05]} 26. Bc3 {[%clk 0:00:14]}  Nc5 {[%clk 0:00:05]} 27. Rf3 {[%clk 0:00:14]}  Ne6 {[%clk 0:00:05]} 28. Rg3 {[%clk 0:00:14]}  Kh8 {[%clk 0:00:04]} 29. Bxg7+ {[%clk 0:00:13]}  Nxg7 {[%clk 0:00:04]} 30. Qf4 {[%clk 0:00:10]}  Qe6 {[%clk 0:00:02]} 31. Rf1 {[%clk 0:00:11]}  Rg8 {[%clk 0:00:02]} 32. e5 {[%clk 0:00:11]}  Rd5 {[%clk 0:00:01]} 33. Qe4 {[%clk 0:00:11]} 1-0


[Site "https://www.chess.com"]